bitfinex/quotes_BTCUSD_20250406
["timestamp","ask_amount","ask_price","bid_price","bid_amount"]
[1743968179907,0.28,79678.0,79677.0,0.27842385]
[1743968180102,0.28,79678.0,79677.0,0.30136369]
[1743968180468,0.2918473,79678.0,79677.0,0.30136369]
[1743968180676,0.2918473,79678.0,79677.0,0.27842385]
[1743968181214,0.2918473,79678.0,79677.0,0.263883]
[1743968182652,0.3043973,79678.0,79677.0,0.00032]
[1743968183253,0.2918473,79678.0,79677.0,0.00032]
[1743968183463,0.2918473,79678.0,79677.0,0.01287]
[1743968183927,0.2918473,79678.0,79677.0,0.02741085]
[1743968184686,0.2918473,79678.0,79677.0,0.00032]
[1743968185089,0.2918473,79678.0,79677.0,0.01287]
[1743968185285,0.28,79678.0,79677.0,0.01287]
[1743968185511,0.29179334,79678.0,79677.0,0.01287]
[1743968186741,0.29179334,79678.0,79677.0,0.02741085]
[1743968186942,0.29179334,79678.0,79677.0,0.20284191]
[1743968187095,0.01179334,79678.0,79677.0,0.56580479]
[1743968187296,0.01179334,79678.0,79677.0,0.60158824]
[1743968187497,0.0001674,79702.0,79701.0,0.012546]
[1743968187658,0.2506207,79702.0,79698.0,0.012547]
[1743968187860,0.01177042,79701.0,79699.0,0.012547]
[1743968188115,0.26177042,79701.0,79700.0,0.263488]
[1743968188460,0.26177042,79701.0,79700.0,0.27802885]
[1743968188669,0.26177042,79701.0,79700.0,0.75011687]
[1743968188923,0.25,79701.0,79700.0,0.75011687]
[1743968189280,0.25,79701.0,79700.0,0.77307649]
[1743968189483,0.25,79701.0,79700.0,0.78688459]
[1743968189688,0.0006207,79702.0,79701.0,0.36708685]
[1743968189902,0.0006207,79702.0,79701.0,0.39004647]
[1743968190201,0.0106207,79702.0,79701.0,0.37750047]
[1743968190404,0.0231667,79702.0,79700.0,0.0138081]
[1743968190612,0.275424,79701.0,79698.0,0.02295962]
[1743968190992,0.263491,79699.0,79698.0,0.02295962]
[1743968191267,0.250985,79686.0,79680.0,0.263553]
[1743968191480,0.250985,79686.0,79678.0,0.21192]
[1743968191481,0.12,79686.0,79685.0,0.263537]
[1743968191683,0.12,79686.0,79685.0,0.27807785]
[1743968191831,0.12,79686.0,79685.0,0.263537]
[1743968192242,0.12,79686.0,79685.0,0.27807785]
[1743968192606,0.12,79686.0,79685.0,0.00963687]
[1743968192856,0.12,79686.0,79683.0,0.012549]
[1743968193061,0.12,79686.0,79684.0,0.26354]
[1743968193261,0.12,79686.0,79685.0,0.02708985]
[1743968194073,0.12,79686.0,79685.0,0.012549]
[1743968195435,0.370985,79686.0,79682.0,0.11081548]
[1743968195581,0.383534,79686.0,79682.0,0.11081548]
[1743968195785,0.383534,79686.0,79684.0,0.012549]
[1743968195786,0.12,79686.0,79684.0,0.012549]
[1743968195990,0.12,79686.0,79685.0,0.012549]
[1743968196341,0.12,79686.0,79685.0,0.02708985]
[1743968196548,0.12,79686.0,79685.0,0.48999282]
[1743968196760,0.0006207,79702.0,79701.0,0.012546]
[1743968196960,0.0006207,79702.0,79701.0,1.00521413]
[1743968196961,0.0306207,79702.0,79701.0,1.00521413]
[1743968197164,0.0306207,79702.0,79701.0,1.00270504]
[1743968197610,0.0006207,79702.0,79701.0,1.00270504]
[1743968198016,7e-07,79702.0,79701.0,1.00270504]
[1743968198425,7e-07,79702.0,79701.0,1.02559472]
[1743968199093,7e-07,79702.0,79701.0,1.02563472]
[1743968200342,7e-07,79702.0,79701.0,0.69097175]
[1743968200548,7e-07,79702.0,79701.0,0.90261175]
[1743968200969,0.2000007,79702.0,79701.0,0.87972207]
[1743968201630,7e-07,79702.0,79701.0,0.87972207]
[1743968201849,7e-07,79702.0,79701.0,1.00262504]
[1743968202491,0.0001674,79729.0,79728.0,0.263394]
[1743968202706,0.24284538,79729.0,79721.0,0.21156]
[1743968202928,0.250907,79711.0,79701.0,0.0229276]
[1743968203133,0.29,79711.0,79703.0,0.012546]
[1743968203345,0.00999697,79710.0,79701.0,0.012586]
[1743968203513,0.25092,79707.0,79701.0,0.012586]
[1743968203727,0.012546,79706.0,79701.0,0.012586]
[1743968203977,0.28993933,79706.0,79704.0,0.012546]
[1743968204201,0.28993933,79706.0,79705.0,0.263471]
[1743968205592,0.28993933,79706.0,79705.0,0.61801185]
[1743968205798,0.00993933,79706.0,79705.0,0.61801185]
[1743968206036,0.0473,79727.0,79726.0,0.250859]
[1743968206175,0.34566917,79727.0,79726.0,0.250859]
[1743968206400,0.29836917,79727.0,79718.0,0.250882]
[1743968206603,0.250859,79726.0,79720.0,0.012543]
[1743968206807,0.00837197,79725.0,79720.0,0.263421]
[1743968207014,0.24837197,79725.0,79720.0,0.263421]
[1743968207215,0.24837197,79725.0,79724.0,0.263408]
[1743968208706,0.24837197,79725.0,79724.0,0.263448]
[1743968209314,0.24837197,79725.0,79724.0,0.40089182]
[1743968210295,0.24837197,79725.0,79724.0,0.41020589]
[1743968210691,0.24837197,79725.0,79724.0,0.28730292]
[1743968210898,0.24837197,79725.0,79724.0,0.27276207]
[1743968211146,0.24837197,79725.0,79724.0,0.00939407]
[1743968211486,0.26091497,79725.0,79724.0,8e-05]
[1743968211700,0.24837197,79725.0,79724.0,8e-05]
[1743968211923,0.26091497,79725.0,79724.0,8e-05]
[1743968212337,0.24837197,79725.0,79724.0,0.02211869]
[1743968212981,0.24837197,79725.0,79724.0,0.012623]
[1743968213602,0.24837197,79725.0,79724.0,0.02209234]
[1743968214003,0.24837197,79725.0,79724.0,0.15953616]
[1743968214565,0.24837197,79725.0,79724.0,0.49953616]
[1743968214767,0.00837197,79725.0,79724.0,0.49953616]
[1743968214988,0.00030338,79729.0,79728.0,0.61793485]
[1743968215194,0.04030338,79729.0,79728.0,0.95207782]
[1743968215750,0.04030338,79729.0,79728.0,1.00209604]
[1743968217027,0.05284538,79729.0,79724.0,0.02209234]
[1743968217227,0.05284538,79729.0,79724.0,0.00954934]
[1743968217463,0.00797056,79728.0,79725.0,0.012543]
[1743968217606,0.24,79728.0,79727.0,0.012542]
[1743968218554,0.24,79728.0,79727.0,0.02708285]
[1743968218704,0.00030338,79729.0,79728.0,0.603394]
[1743968218903,0.00030338,79729.0,79728.0,0.74083782]
[1743968219108,0.29030338,79729.0,79728.0,0.61793485]
[1743968219488,0.29030338,79729.0,79728.0,0.27793485]
[1743968219919,0.29030338,79729.0,79728.0,0.263394]
[1743968220511,0.29030338,79729.0,79728.0,0.27793485]
[1743968220724,0.29829513,79729.0,79728.0,0.012542]
[1743968220915,0.29829513,79729.0,79725.0,0.012543]
[1743968221113,0.29829513,79729.0,79728.0,0.263394]
[1743968221381,0.29829513,79729.0,79728.0,0.27793485]
[1743968221767,0.29829513,79729.0,79724.0,0.00946934]
[1743968221768,0.31083713,79729.0,79724.0,0.00946934]
[1743968221977,0.29829513,79729.0,79725.0,0.250862]
[1743968222171,0.29829513,79729.0,79728.0,0.012542]
[1743968222505,0.29829513,79729.0,79728.0,0.02708285]
[1743968223011,0.29030338,79729.0,79728.0,0.02708285]
[1743968223420,0.29829513,79729.0,79726.0,0.263398]
[1743968223620,0.29819242,79729.0,79726.0,0.263398]
[1743968223763,0.29819242,79729.0,79724.0,0.02183654]
[1743968223764,0.263402,79726.0,79724.0,0.00929354]
[1743968223963,0.27,79726.0,79722.0,0.012543]
[1743968224175,0.00799343,79725.0,79722.0,0.012543]
[1743968224552,0.27799343,79725.0,79723.0,0.012543]
[1743968224706,0.250871,79722.0,79721.0,0.00948506]
[1743968224910,0.250871,79722.0,79716.0,0.25089]
[1743968224911,0.503414,79722.0,79716.0,0.25089]
[1743968225143,0.503414,79722.0,79716.0,0.00934676]
[1743968225144,0.250884,79718.0,79716.0,0.00934676]
[1743968225468,0.28,79718.0,79714.0,0.012544]
[1743968225594,0.00795527,79717.0,79713.0,0.250899]
[1743968225793,0.553434,79717.0,79712.0,0.263446]
[1743968226183,0.00795751,79716.0,79713.0,0.012545]
[1743968226333,0.25795751,79716.0,79714.0,0.012544]
[1743968226534,0.25795751,79716.0,79714.0,0.263438]
[1743968226713,0.25795751,79716.0,79714.0,0.012544]
[1743968226913,0.25795751,79716.0,79715.0,0.263437]
[1743968227141,0.25795751,79716.0,79712.0,0.00931478]
[1743968227339,0.25795751,79716.0,79711.0,0.012545]
[1743968227546,0.25795751,79716.0,79712.0,0.250901]
[1743968227746,0.25795751,79716.0,79715.0,0.012544]
[1743968227950,0.25795751,79716.0,79715.0,0.61797785]
[1743968228152,0.25,79716.0,79715.0,0.61797785]
[1743968228669,0.25795303,79716.0,79715.0,0.61797785]
[1743968230425,0.25795303,79716.0,79714.0,0.06355027]
[1743968230539,0.25795303,79716.0,79714.0,0.31444627]
[1743968230736,0.25795303,79716.0,79715.0,0.012544]
[1743968232334,0.25795303,79716.0,79715.0,0.02708485]
[1743968233387,0.25795303,79716.0,79714.0,0.06355027]
[1743968233591,0.25795303,79716.0,79712.0,0.02207522]
[1743968233592,0.263445,79713.0,79712.0,0.00953022]
[1743968233794,0.012545,79709.0,79701.0,0.250937]
[1743968233967,0.012545,79709.0,79677.0,0.4132]
[1743968233968,0.250969,79691.0,79683.0,0.250994]
[1743968234170,0.27,79691.0,79690.0,0.012548]
[1743968235024,0.27,79691.0,79687.0,0.26353]
[1743968235404,0.250985,79686.0,79683.0,0.00934387]
[1743968235614,0.250985,79686.0,79673.0,0.0128858]
[1743968235615,0.251008,79679.0,79673.0,0.0003348]
[1743968235868,0.25,79679.0,79678.0,0.263559]
[1743968236312,0.25,79679.0,79678.0,0.26356]
[1743968236514,0.26356,79678.0,79673.0,0.0007881]
[1743968236763,0.26,79678.0,79673.0,0.2643611]
[1743968236963,0.26,79678.0,79674.0,0.251022]
[1743968237172,0.26,79678.0,79677.0,0.01255]
[1743968239379,0.26,79678.0,79677.0,0.02709085]
[1743968239817,0.26,79678.0,79673.0,0.0007881]
[1743968239988,0.26,79678.0,79677.0,0.01]
[1743968240188,0.52356,79678.0,79677.0,0.01]
[1743968240394,0.26,79678.0,79677.0,0.01]
[1743968241158,0.44275297,79678.0,79677.0,0.01]
[1743968241377,0.49125297,79678.0,79677.0,0.01]
[1743968241586,0.49125297,79678.0,79673.0,0.0007881]
[1743968241587,0.263573,79674.0,79673.0,0.0007881]
[1743968241767,0.11335,79678.0,79677.0,0.535854]
[1743968242001,0.75226297,79678.0,79677.0,0.439054]
[1743968244604,0.75226297,79678.0,79677.0,0.392254]
[1743968244811,1.01796297,79678.0,79677.0,0.223554]
[1743968245391,0.603573,79674.0,79673.0,0.0007881]
[1743968245550,0.263646,79652.0,79646.0,0.000335]
[1743968245752,0.511092,79652.0,79651.0,0.00047082]
[1743968245953,0.26,79652.0,79651.0,0.00047082]
[1743968247409,0.39545697,79652.0,79651.0,0.00047082]
[1743968249385,0.85303318,79652.0,79651.0,8.2e-07]
[1743968249581,0.608663,79647.0,79646.0,0.000335]
[1743968249793,0.608663,79647.0,79645.0,0.000335]
[1743968249794,0.357555,79646.0,79645.0,1e-06]
[1743968249997,0.012557,79636.0,79635.0,0.0003348]
[1743968250204,0.012557,79636.0,79635.0,8.4e-07]
[1743968250205,2.04533997,79636.0,79635.0,8.4e-07]
[1743968250615,2.04533997,79636.0,79605.0,0.0003346]
[1743968250616,0.608732,79626.0,79625.0,6.4e-07]
[1743968250823,0.608749,79621.0,79605.0,0.0003346]
[1743968251027,1.01165197,79621.0,79605.0,0.0003346]
[1743968251233,1.0120156,79621.0,79605.0,0.0003346]
[1743968252023,0.6720156,79621.0,79605.0,0.0003346]
[1743968252207,0.6720156,79621.0,79606.0,0.012561]
[1743968252400,0.4082666,79621.0,79607.0,0.012561]
[1743968252614,0.28536363,79621.0,79620.0,1.012559]
[1743968252819,0.28,79621.0,79620.0,1.012559]
[1743968253088,0.28,79621.0,79620.0,1.022559]
[1743968253298,0.28,79621.0,79620.0,1.01]
[1743968253704,0.29781861,79621.0,79620.0,1.01]
[1743968254142,0.28525961,79621.0,79620.0,1.01]
[1743968254341,0.28525961,79621.0,79620.0,1.022559]
[1743968254557,0.53644961,79621.0,79620.0,1.01]
[1743968254762,0.66665197,79621.0,79620.0,1.01]
[1743968254962,0.67198517,79621.0,79620.0,1.01]
[1743968255378,1.01198517,79621.0,79620.0,1.01]
[1743968255561,1.01698517,79621.0,79620.0,1.01]
[1743968255936,1.04198517,79621.0,79620.0,1.01]
[1743968256108,1.04198517,79621.0,79620.0,0.439347]
[1743968256308,0.67198517,79621.0,79620.0,1e-06]
[1743968256681,0.2853332,79621.0,79620.0,0.263753]
[1743968257026,0.2853332,79621.0,79620.0,1e-06]
[1743968257234,0.28,79621.0,79620.0,0.01256]
[1743968257765,0.28491624,79621.0,79620.0,1e-06]
[1743968258106,0.28491624,79621.0,79620.0,0.01256]
[1743968258313,0.28,79621.0,79620.0,0.01256]
[1743968258536,0.28491624,79621.0,79620.0,0.01256]
[1743968258936,0.28491624,79621.0,79620.0,0.02710085]
[1743968259174,0.28491624,79621.0,79620.0,1e-06]
[1743968259405,0.40781921,79621.0,79620.0,1e-06]
[1743968262135,0.28491624,79621.0,79620.0,1e-06]
[1743968262341,0.28491624,79621.0,79620.0,0.27829385]
[1743968262739,0.28,79621.0,79620.0,0.27829385]
[1743968263088,0.28492693,79621.0,79620.0,0.27829385]
[1743968263291,0.251076,79657.0,79645.0,0.012555]
[1743968263615,0.00013589,79650.0,79647.0,0.26366]
[1743968263808,0.28013589,79650.0,79647.0,0.012555]
[1743968264135,0.28013589,79650.0,79643.0,0.251119]
[1743968264350,0.28013589,79650.0,79645.0,0.251114]
[1743968264518,0.28013589,79650.0,79649.0,0.263656]
[1743968264695,0.28013589,79650.0,79649.0,0.27819685]
[1743968265100,0.00013589,79650.0,79649.0,0.61819685]
[1743968265416,0.24013589,79650.0,79649.0,0.61819685]
[1743968265942,0.24013589,79650.0,79645.0,0.06331459]
[1743968266158,0.251131,79640.0,79639.0,0.01315836]
[1743968266298,0.25,79640.0,79639.0,0.01315836]
[1743968266502,0.25,79640.0,79637.0,0.263692]
[1743968266949,0.25,79640.0,79637.0,0.012556]
[1743968267418,0.25,79640.0,79639.0,0.012556]
[1743968267748,0.25,79640.0,79639.0,0.02709685]
[1743968269936,0.25,79640.0,79637.0,0.01305167]
[1743968270146,0.25,79640.0,79633.0,0.34]
[1743968270294,0.25,79640.0,79636.0,0.251139]
[1743968270501,0.25,79640.0,79636.0,0.263696]
[1743968270697,0.25,79640.0,79634.0,0.012557]
[1743968270859,0.25,79640.0,79635.0,0.263702]
[1743968271068,0.25,79640.0,79637.0,0.263694]
[1743968271306,0.25,79640.0,79637.0,0.012556]
[1743968271510,0.25,79640.0,79635.0,0.263702]
[1743968272271,0.25,79640.0,79636.0,0.012557]
[1743968272526,0.18701,79640.0,79636.0,0.263697]
[1743968273618,0.18701,79640.0,79636.0,0.012557]
[1743968273819,0.012557,79635.0,79634.0,0.01336906]
[1743968274136,0.26,79635.0,79630.0,0.0478]
[1743968274539,0.26,79635.0,79633.0,0.012557]
[1743968274884,0.26,79635.0,79634.0,0.02709785]
[1743968275205,0.26,79635.0,79634.0,0.04019016]
[1743968276670,0.0001676,79658.0,79649.0,0.263656]
[1743968276903,0.26013589,79650.0,79649.0,0.263656]
[1743968277555,0.00013589,79650.0,79649.0,0.45099982]
[1743968277750,0.00013589,79650.0,79649.0,0.79099982]
[1743968277880,0.00013589,79650.0,79649.0,0.80026181]
[1743968278496,0.0001676,79658.0,79657.0,0.603629]
[1743968278693,0.0001676,79658.0,79657.0,0.84079104]
[1743968278893,6e-07,79658.0,79657.0,0.89029104]
[1743968279095,0.0001676,79682.0,79681.0,0.26355]
[1743968279320,0.0001676,79682.0,79681.0,0.37780907]
[1743968279321,0.06030364,79682.0,79681.0,0.37780907]
[1743968279854,0.00030364,79682.0,79681.0,0.37780907]
[1743968281141,0.00030364,79682.0,79681.0,0.38780907]
[1743968281757,0.00030364,79682.0,79681.0,0.39699978]
[1743968281983,0.05030364,79682.0,79681.0,0.03230875]
[1743968282185,0.05030364,79682.0,79681.0,0.02311804]
[1743968282802,0.05030364,79682.0,79681.0,0.02255]
[1743968283296,0.05030364,79682.0,79681.0,0.03709085]
[1743968283881,0.05030364,79682.0,79681.0,0.08679085]
[1743968284724,0.00030364,79682.0,79681.0,0.42679085]
[1743968285090,1e-08,79682.0,79681.0,0.61219131]
[1743968287349,0.0001676,79706.0,79705.0,0.012546]
[1743968287496,0.2506209,79706.0,79705.0,0.263471]
[1743968287709,0.2506209,79706.0,79701.0,0.05001822]
[1743968287710,0.2631669,79706.0,79691.0,0.05001822]
[1743968287935,0.2506209,79706.0,79696.0,0.012547]
[1743968288127,0.2506209,79706.0,79701.0,0.26348]
[1743968288128,0.01163985,79705.0,79701.0,0.26348]
[1743968288338,0.29163985,79705.0,79702.0,0.012546]
[1743968288553,0.29163985,79705.0,79700.0,0.012547]
[1743968288742,0.28563985,79705.0,79700.0,0.012547]
[1743968288998,0.28,79705.0,79700.0,0.263485]
[1743968289201,0.28,79705.0,79701.0,0.250937]
[1743968289385,0.28,79705.0,79702.0,0.012546]
[1743968289934,0.28,79705.0,79701.0,0.250937]
[1743968290166,0.28,79705.0,79701.0,0.256937]
[1743968290365,0.28,79705.0,79701.0,0.006]
[1743968290539,0.292546,79705.0,79696.0,0.00962577]
[1743968290759,0.28,79705.0,79702.0,0.006]
[1743968290937,0.28,79705.0,79702.0,0.012]
[1743968291121,0.28,79705.0,79702.0,0.006]
[1743968291324,0.28,79705.0,79703.0,0.250931]
[1743968291526,0.28,79705.0,79704.0,0.012546]
[1743968291738,0.0006209,79706.0,79705.0,0.61801185]
[1743968291934,0.0006209,79706.0,79705.0,0.95035482]
[1743968292350,0.0006209,79706.0,79705.0,0.82745185]
[1743968293402,0.0006209,79706.0,79705.0,0.48745185]
[1743968293671,0.0006209,79706.0,79705.0,0.49345185]
[1743968294268,0.0006209,79706.0,79705.0,0.95635482]
[1743968294557,0.0016209,79706.0,79705.0,0.95835482]
[1743968295973,0.0016209,79706.0,79705.0,0.98335482]
[1743968296213,0.0001676,79714.0,79713.0,0.603445]
[1743968296387,6e-07,79714.0,79713.0,0.83780704]
[1743968296591,0.00013653,79714.0,79713.0,0.83780704]
[1743968297401,0.00013653,79714.0,79713.0,0.84380704]
[1743968297811,0.00013653,79714.0,79713.0,0.83780704]
[1743968298135,0.00013653,79714.0,79713.0,1.05300704]
[1743968298320,0.02306051,79742.0,79733.0,0.250837]
[1743968298483,0.28065639,79742.0,79741.0,0.01254]
[1743968298900,0.28065639,79742.0,79741.0,0.02708085]
[1743968299098,0.27013588,79742.0,79741.0,0.02708085]
[1743968299828,0.27013588,79742.0,79741.0,0.05548324]
[1743968300033,0.27013588,79742.0,79741.0,0.05799122]
[1743968300234,0.27013588,79742.0,79741.0,0.39548324]
[1743968300403,0.00013588,79742.0,79741.0,0.51838621]
[1743968300606,0.00013588,79742.0,79741.0,0.52438621]
[1743968300995,0.00013588,79742.0,79741.0,0.51238621]
[1743968301375,0.00013588,79742.0,79741.0,0.51838621]
[1743968301568,0.00013588,79742.0,79741.0,0.52438621]
[1743968302164,8.8e-07,79742.0,79741.0,0.52438621]
[1743968302764,8.8e-07,79742.0,79741.0,0.51238621]
[1743968302929,8.8e-07,79742.0,79741.0,0.51838621]
[1743968303173,0.15000088,79742.0,79741.0,0.59594239]
[1743968303422,0.15000088,79742.0,79741.0,0.37494239]
[1743968303681,0.15000088,79742.0,79741.0,0.58994239]
[1743968303913,0.15000088,79742.0,79741.0,0.22423773]
[1743968304351,0.15585228,79742.0,79741.0,0.21823773]
[1743968304596,0.15585228,79742.0,79741.0,0.23023773]
[1743968305362,0.15000088,79742.0,79741.0,0.25570559]
[1743968305558,0.15000088,79742.0,79741.0,0.59570559]
[1743968306414,0.15000088,79742.0,79741.0,0.24316559]
[1743968306919,0.15000088,79742.0,79741.0,0.25570559]
[1743968307499,0.15000088,79742.0,79741.0,0.26570559]
[1743968307911,0.16164666,79742.0,79741.0,0.26570559]
[1743968309642,0.16164666,79742.0,79741.0,0.28024644]
[1743968309853,0.16164666,79742.0,79741.0,0.74314941]
[1743968310231,0.16164666,79742.0,79741.0,0.79104941]
[1743968310433,0.01164666,79742.0,79741.0,0.79104941]
[1743968312241,0.01164666,79742.0,79741.0,0.83854941]
[1743968312449,8.8e-07,79742.0,79741.0,0.83854941]
[1743968312816,0.0001673,79758.0,79757.0,0.02707885]
[1743968312817,3e-07,79758.0,79757.0,0.02707885]
[1743968313016,7e-07,79761.0,79757.0,0.84076788]
[1743968313277,3e-07,79762.0,79761.0,0.36707785]
[1743968313420,3e-07,79762.0,79761.0,1.88570082]
[1743968314205,3e-07,79762.0,79761.0,1.89022548]
[1743968314318,3e-07,79762.0,79761.0,1.68150548]
[1743968314530,3e-07,79762.0,79761.0,1.89018548]
[1743968315553,3e-07,79762.0,79761.0,1.89618548]
[1743968315752,0.01164402,79782.0,79771.0,0.34]
[1743968315963,0.01164402,79782.0,79781.0,0.60322]
[1743968316171,0.0117799,79782.0,79781.0,0.99928204]
[1743968316383,0.0117799,79782.0,79781.0,0.79068204]
[1743968316584,0.2817799,79782.0,79781.0,0.87637907]
[1743968316783,0.27013588,79782.0,79781.0,0.27776085]
[1743968316992,0.27534085,79782.0,79781.0,0.221134]
[1743968317188,0.27534085,79782.0,79781.0,0.47182]
[1743968317414,0.2700332,79782.0,79781.0,0.21811714]
[1743968317640,0.2825672,79782.0,79781.0,0.22411714]
[1743968318081,0.2825672,79782.0,79781.0,0.006]
[1743968318413,0.40547017,79782.0,79781.0,0.012]
[1743968318649,0.40547017,79782.0,79781.0,0.006]
[1743968318848,0.012535,79776.0,79767.0,0.012536]
[1743968319060,0.252535,79776.0,79769.0,0.012536]
[1743968319999,0.26324,79775.0,79767.0,0.269263]
[1743968320213,0.50324,79775.0,79767.0,0.262729]
[1743968320407,0.252535,79775.0,79767.0,0.269265]
[1743968320607,0.252535,79775.0,79767.0,0.263265]
[1743968320817,0.24,79775.0,79774.0,0.263243]
[1743968323322,0.24,79775.0,79774.0,0.62978385]
[1743968323925,0.24,79775.0,79774.0,0.62378385]
[1743968324119,0.24,79775.0,79774.0,0.61778385]
[1743968324581,0.24,79775.0,79774.0,0.62378385]
[1743968325110,0.24,79775.0,79774.0,0.62978385]
[1743968325377,0.24,79775.0,79774.0,0.84998682]
[1743968325552,3.32e-05,79782.0,79781.0,0.27776085]
[1743968325753,0.0100332,79782.0,79781.0,0.79068204]
[1743968325957,3.32e-05,79782.0,79781.0,0.79068204]
[1743968326944,3.32e-05,79782.0,79781.0,0.80268204]
[1743968327366,0.2800332,79782.0,79781.0,0.42606747]
[1743968327594,0.2800332,79782.0,79781.0,0.68928747]
[1743968327804,0.2800332,79782.0,79781.0,0.69928747]
[1743968329225,0.2800332,79782.0,79781.0,0.82219044]
[1743968330261,3.32e-05,79782.0,79781.0,0.82219044]
[1743968330892,0.0100332,79782.0,79781.0,0.69928747]
[1743968331892,0.0100332,79782.0,79781.0,0.82219044]
[1743968332049,3.32e-05,79782.0,79781.0,0.82219044]
[1743968333382,0.0001676,79785.0,79781.0,0.82219044]
[1743968333383,0.0001673,79814.0,79813.0,0.263114]
[1743968333603,0.25062034,79814.0,79813.0,0.263114]
[1743968334687,0.25062034,79814.0,79810.0,0.250593]
[1743968334848,0.25062034,79814.0,79811.0,0.01345027]
[1743968335046,0.25062034,79814.0,79807.0,0.05001822]
[1743968335264,0.250596,79810.0,79807.0,0.06331976]
[1743968335459,0.27,79810.0,79807.0,0.07292522]
[1743968335703,0.27,79810.0,79807.0,0.08545522]
[1743968335918,0.27,79810.0,79807.0,0.33605722]
[1743968336043,0.27,79810.0,79808.0,0.263129]
[1743968336258,0.27,79810.0,79809.0,0.01454085]
[1743968336468,0.27,79810.0,79809.0,0.02706985]
[1743968336987,0.27,79810.0,79808.0,0.01253]
[1743968337183,0.27,79810.0,79809.0,0.263127]
[1743968338068,0.27,79810.0,79808.0,0.262598]
[1743968338223,0.27,79810.0,79809.0,0.012529]
[1743968338604,0.27,79810.0,79807.0,0.05962368]
[1743968338807,0.27,79810.0,79809.0,0.006]
[1743968339009,0.27,79810.0,79809.0,0.012]
[1743968339601,0.27,79810.0,79809.0,0.03306985]
[1743968340397,0.27,79810.0,79809.0,0.006]
[1743968340623,0.520595,79810.0,79809.0,0.006]
[1743968341557,0.65602697,79810.0,79809.0,0.006]
[1743968341790,0.65602697,79810.0,79788.0,0.255195]
[1743968342021,0.250635,79797.0,79788.0,0.012533]
[1743968342240,0.292531,79797.0,79786.0,0.21717962]
[1743968342512,0.250667,79787.0,79786.0,0.21717962]
[1743968342705,0.24,79787.0,79786.0,0.02241635]
[1743968342908,0.250683,79782.0,79781.0,0.01]
[1743968343136,0.63611997,79782.0,79781.0,0.01]
[1743968343751,0.263299,79757.0,79756.0,0.11081548]
[1743968343955,0.530761,79757.0,79756.0,0.11081548]
[1743968344128,0.66620197,79757.0,79756.0,0.11095136]
[1743968344332,0.28,79757.0,79756.0,0.11095136]
[1743968344540,0.66620197,79757.0,79756.0,0.11095136]
[1743968344941,0.66620197,79757.0,79756.0,0.00013588]
[1743968345562,0.66048352,79757.0,79756.0,0.00013588]
[1743968345938,0.66048352,79757.0,79756.0,0.00613588]
[1743968346523,0.66048352,79757.0,79756.0,0.00013588]
[1743968346719,0.66048352,79757.0,79756.0,0.01213588]
[1743968346967,0.66048352,79757.0,79756.0,0.01247068]
[1743968347139,0.39718452,79757.0,79756.0,0.01247068]
[1743968347541,0.27391001,79757.0,79756.0,0.01247068]
[1743968347983,0.27391001,79757.0,79756.0,0.01900868]
[1743968348119,0.28644801,79757.0,79756.0,0.00647068]
[1743968348319,0.34654098,79757.0,79756.0,0.00047068]
[1743968348693,0.34654098,79757.0,79756.0,0.00647068]
[1743968348867,0.34654098,79757.0,79756.0,0.01247068]
[1743968349469,0.34654098,79757.0,79756.0,0.00647068]
[1743968349692,0.34654098,79757.0,79756.0,0.01247068]
[1743968350860,0.34654098,79757.0,79756.0,0.00647068]
[1743968351511,0.34654098,79757.0,79756.0,0.01247068]
[1743968351892,0.34654098,79757.0,79734.0,0.012541]
[1743968352101,0.250797,79746.0,79738.0,0.25082]
[1743968352321,0.38290297,79746.0,79739.0,0.01254]
[1743968352524,0.26,79746.0,79745.0,0.263338]
[1743968353700,0.26,79746.0,79744.0,0.250802]
[1743968353952,0.26,79746.0,79745.0,0.012539]
[1743968354415,0.26,79746.0,79744.0,0.250802]
[1743968354611,0.26,79746.0,79738.0,0.27315359]
[1743968354810,0.01254,79743.0,79738.0,0.01291859]
[1743968355011,0.250823,79738.0,79734.0,0.00613588]
[1743968355216,0.500823,79738.0,79734.0,0.00613588]
[1743968355370,0.500823,79738.0,79734.0,0.00013588]
[1743968355576,0.25,79738.0,79734.0,0.00013588]
[1743968356243,0.25,79738.0,79737.0,0.012541]
[1743968356641,0.25,79738.0,79737.0,0.02708185]
[1743968357841,0.25,79738.0,79737.0,0.02738185]
[1743968358360,0.18719,79738.0,79737.0,0.03338185]
[1743968358560,0.18719,79738.0,79737.0,0.0123]
[1743968358914,0.57345497,79738.0,79737.0,0.0123]
[1743968359231,0.57345497,79738.0,79737.0,0.0063]
[1743968359440,0.57345497,79738.0,79737.0,0.0123]
[1743968359620,0.57345497,79738.0,79737.0,0.0063]
[1743968360778,0.57345497,79738.0,79737.0,0.0003]
[1743968361122,0.57345497,79738.0,79737.0,0.0123]
[1743968361472,0.57345497,79738.0,79737.0,0.0063]
[1743968361877,0.57345497,79738.0,79715.0,0.01321991]
[1743968361878,0.263434,79716.0,79715.0,0.01321991]
[1743968362117,0.26344,79714.0,79713.0,0.0003348]
[1743968362295,0.67634297,79714.0,79713.0,0.0003348]
[1743968363296,0.66379897,79714.0,79713.0,0.0003348]
[1743968363522,0.540896,79714.0,79713.0,0.0003348]
[1743968363721,0.29,79714.0,79713.0,0.0003348]
[1743968364348,0.29,79714.0,79713.0,0.0063348]
[1743968364498,0.29,79714.0,79713.0,0.0003348]
[1743968364901,0.29,79714.0,79713.0,0.0123348]
[1743968365108,0.29,79714.0,79713.0,0.0188798]
[1743968365341,0.29,79714.0,79713.0,0.0648798]
[1743968366217,0.22719,79714.0,79713.0,0.08542065]
[1743968367532,0.22719,79714.0,79713.0,0.07342065]
[1743968367770,0.22719,79714.0,79713.0,0.08542065]
[1743968368163,0.22719,79714.0,79713.0,0.07942065]
[1743968368495,0.22719,79714.0,79713.0,0.08542065]
[1743968368944,0.22719,79714.0,79713.0,0.29274065]
[1743968369346,0.22719,79714.0,79713.0,0.0248798]
[1743968369549,0.22719,79714.0,79713.0,0.2321998]
[1743968370219,0.22719,79714.0,79713.0,0.24674065]
[1743968371620,0.49063,79714.0,79713.0,0.0123348]